bitfinex/quotes_ETHUSD_20250722
["timestamp","ask_amount","ask_price","bid_price","bid_amount"]
[1753212752223,0.4636,3697.1,3696.7,4.21845882]
[1753212752395,14.5,3697.5,3696.8,2.70496963]
[1753212752597,14.5,3697.5,3696.7,3.92350471]
[1753212752598,14.9636,3697.5,3696.7,3.92357062]
[1753212752925,6.93080323,3697.4,3695.8,0.4608]
[1753212753108,0.4636,3697.3,3696.1,3.0]
[1753212753418,2.974,3697.2,3696.2,0.4608]
[1753212753616,14.5,3697.1,3696.7,2.70506009]
[1753212754221,14.5,3697.1,3696.3,0.01381745]
[1753212754222,0.8309,3697.8,3697.0,2.70489586]
[1753212754423,0.4636,3697.9,3697.1,0.63908944]
[1753212754424,2.973,3697.7,3697.1,0.63908944]
[1753212754590,2.973,3697.7,3697.2,2.70469355]
[1753212754804,2.973,3697.7,3697.2,3.16549355]
[1753212755331,2.973,3697.7,3697.3,2.70467027]
[1753212755531,0.002,3698.1,3697.3,0.47460207]
[1753212755733,2.973,3698.0,3697.3,0.47460207]
[1753212755932,5.67717343,3698.0,3697.4,2.70455859]
[1753212756134,2.973,3698.0,3697.5,0.5870052]
[1753212756547,2.973,3698.0,3697.4,2.70460323]
[1753212756711,2.973,3698.0,3697.3,0.4608]
[1753212756911,2.973,3698.0,3697.3,3.16545701]
[1753212757329,5.67718698,3698.0,3697.3,3.16545701]
[1753212757733,5.67718698,3698.0,3697.3,2.70465701]
[1753212758036,2.973,3698.0,3697.4,3.24552851]
[1753212758236,2.973,3698.0,3697.6,2.7044569]
[1753212758237,17.473,3698.0,3697.6,2.7044569]
[1753212758476,17.473,3698.0,3697.4,0.54094159]
[1753212758477,17.473,3698.0,3697.4,2.70455833]
[1753212758752,2.971,3697.9,3697.5,2.70450524]
[1753212758959,2.971,3697.9,3697.6,2.70445627]
[1753212759128,2.97,3697.8,3697.6,2.70445627]
[1753212759330,2.97,3697.8,3697.0,0.4608]
[1753212759542,2.97,3697.8,3697.1,2.88875472]
[1753212759748,2.97,3697.8,3697.2,2.70468296]
[1753212760124,2.97,3697.8,3697.4,2.70458912]
[1753212760518,14.5,3698.0,3697.1,0.18399]
[1753212760723,2.969,3697.9,3697.6,2.70438387]
[1753212761219,2.969,3697.8,3697.6,2.70444335]
[1753212761418,0.002,3698.1,3697.2,0.4608]
[1753212761622,0.002,3698.1,3698.0,2.70416441]
[1753212761824,0.002,3698.1,3698.0,2.97458085]
[1753212762023,0.002,3698.1,3698.0,3.22719345]
[1753212764433,0.002,3698.1,3698.0,3.68799345]
[1753212765688,0.002,3698.1,3698.0,0.52302904]
[1753212765853,0.002,3698.1,3698.0,2.95677701]
[1753212766049,0.002,3698.1,3698.0,0.2526126]
[1753212766050,3.92309129,3698.1,3698.0,0.2526126]
[1753212766255,18.45689243,3698.1,3698.0,0.2526126]
[1753212766495,18.42309129,3698.1,3698.0,0.2526126]
[1753212766855,15.719,3698.1,3698.0,0.25269079]
[1753212767087,18.42309129,3698.1,3698.0,0.25269079]
[1753212767481,2.70462636,3697.4,3696.5,3.7669]
[1753212767789,2.969,3697.3,3696.7,2.70506331]
[1753212768088,5.67368556,3697.3,3696.8,0.25269776]
[1753212768296,3.4381,3697.3,3696.9,0.25269776]
[1753212768468,2.969,3697.3,3697.0,0.25269776]
[1753212768656,3.17385214,3697.2,3697.1,0.25269776]
[1753212769293,3.17385214,3697.2,3696.1,0.453]
[1753212769294,2.70556223,3696.1,3695.6,0.7684]
[1753212769618,3.4381,3696.0,3695.1,0.79]
[1753212769826,15.00292034,3696.0,3695.1,0.79]
[1753212770130,2.969,3695.9,3695.2,2.70614626]
[1753212770285,2.969,3695.9,3695.4,2.70606566]
[1753212770686,14.9691,3696.0,3695.3,2.70614023]
[1753212770924,2.969,3695.8,3695.2,0.665549]
[1753212771092,2.969,3695.8,3695.2,2.70620854]
[1753212771287,2.969,3695.8,3695.3,2.70613241]
[1753212771487,14.5,3696.0,3695.1,0.79]
[1753212771807,2.70423031,3698.0,3695.1,0.79]
[1753212771808,2.97,3696.4,3695.5,0.55]
[1753212772012,2.97,3696.4,3696.0,2.70557672]
[1753212772392,2.97,3696.4,3696.1,2.70554676]
[1753212772590,2.97,3696.4,3695.8,2.70576387]
[1753212772931,2.97,3696.4,3695.9,2.70568913]
[1753212773101,2.97,3696.4,3696.0,2.70557742]
[1753212773424,0.8468276,3696.3,3695.4,0.7808]
[1753212773586,1.2582,3696.2,3695.1,2.70723712]
[1753212773784,3.4947277,3696.0,3695.1,0.001]
[1753212774093,3.00382126,3695.9,3695.1,0.001]
[1753212774289,3.20862917,3695.9,3695.1,2.70723346]
[1753212774490,2.97,3695.8,3695.1,0.001]
[1753212774684,2.7059288,3695.6,3695.1,0.001]
[1753212774995,0.50292309,3695.7,3695.1,0.001]
[1753212775208,14.9691,3695.6,3695.1,0.001]
[1753212775723,0.4691,3695.5,3695.1,0.001]
[1753212775927,3.4391,3695.5,3695.1,2.70727655]
[1753212776222,2.97,3695.5,3695.1,0.001]
[1753212776626,14.5,3695.6,3695.1,0.001]
[1753212776822,2.97,3695.5,3695.1,2.70728154]
[1753212777268,2.97,3695.5,3695.2,2.7062063]
[1753212777390,2.97,3695.4,3695.1,3.03378215]
[1753212777590,2.97,3695.4,3695.1,2.70728329]
[1753212777808,2.97,3695.4,3695.2,2.70620459]
[1753212778413,14.5,3695.6,3695.5,2.70599377]
[1753212778615,17.47,3695.6,3695.5,2.70599377]
[1753212778808,2.97,3695.6,3695.5,2.70599377]
[1753212779009,2.97,3695.6,3695.3,0.453]
[1753212779010,2.97,3695.6,3695.4,2.70604912]
[1753212779213,3.49473159,3696.0,3695.3,3.15911711]
[1753212779493,17.47,3695.9,3695.4,2.70603699]
[1753212779918,17.47,3695.9,3695.1,0.001]
[1753212779919,2.97,3695.8,3695.1,0.454]
[1753212780233,2.97,3695.8,3695.1,3.16027422]
[1753212780531,17.20572563,3695.9,3695.3,2.70613936]
[1753212780709,2.97,3695.8,3695.2,2.70618515]
[1753212781110,2.97,3695.8,3695.3,2.70614023]
[1753212781628,2.97,3695.7,3695.5,2.70593015]
[1753212781835,2.97,3695.7,3695.3,2.70610451]
[1753212782136,2.97,3695.7,3695.2,2.70619009]
[1753212782297,0.4691,3695.6,3695.1,2.70727043]
[1753212782495,0.4691,3695.6,3695.2,2.70618157]
[1753212783021,2.97,3695.7,3695.3,2.70609182]
[1753212783334,2.97,3695.7,3695.3,2.70611997]
[1753212783532,0.4691,3695.6,3695.1,2.70725636]
[1753212783700,2.97,3695.5,3695.3,2.70613614]
[1753212784029,2.97,3695.5,3695.2,2.70621346]
[1753212784237,2.97,3695.5,3695.4,2.70600925]
[1753212784435,2.97,3695.5,3695.2,2.70621346]
[1753212784436,2.97,3695.5,3695.3,2.70612373]
[1753212784631,2.97,3695.5,3695.4,2.706067]
[1753212786534,2.97,3695.5,3695.1,0.001]
[1753212786535,2.97,3695.5,3695.3,2.70611212]
[1753212786856,2.97,3695.5,3695.4,2.706067]
[1753212787444,2.97,3695.5,3695.3,2.70611467]
[1753212787757,2.97,3695.5,3695.4,2.706067]
[1753212788136,2.97,3695.5,3695.3,2.7061153]
[1753212788583,2.97,3695.5,3695.1,0.001]
[1753212788760,2.97,3695.5,3695.3,2.70607316]
[1753212789218,2.97,3695.5,3695.1,0.001]
[1753212789419,2.97,3695.5,3695.1,2.70725619]
[1753212789857,2.97,3695.5,3695.2,2.70620733]
[1753212790062,14.5,3695.8,3695.1,0.001]
[1753212790360,2.97,3695.7,3695.2,2.70617134]
[1753212791243,2.97,3695.7,3695.2,2.70621125]
[1753212791554,2.97,3695.7,3695.4,2.70602837]
[1753212791761,2.97,3695.7,3695.3,2.70612004]
[1753212791955,2.97,3695.7,3695.3,2.70613397]
[1753212792458,2.97,3695.7,3695.2,2.70620706]
[1753212792662,2.97,3695.6,3695.4,2.70600986]
[1753212792958,2.97,3695.6,3695.3,2.70611773]
[1753212793163,2.97,3695.6,3695.2,3.15918065]
[1753212793365,2.97,3695.6,3695.2,2.70618065]
[1753212793580,2.97,3695.6,3695.3,2.70613535]
[1753212794068,2.97,3695.6,3695.4,2.70602595]
[1753212794279,2.97,3695.6,3695.3,2.70610765]
[1753212794635,2.97,3695.6,3695.1,0.454]
[1753212794962,2.97,3695.6,3695.5,2.70599377]
[1753212795527,2.97,3695.6,3695.5,3.74547792]
[1753212795843,2.97,3695.6,3695.5,2.70599377]
[1753212796233,14.5,3695.9,3695.6,2.70588819]
[1753212796637,2.97,3695.8,3695.6,2.70588819]
[1753212797177,2.97,3695.8,3695.7,2.70584733]
[1753212797332,2.97,3695.8,3695.6,2.70584937]
[1753212797533,14.5,3695.9,3695.7,2.70584679]
[1753212797777,2.97,3695.8,3695.6,2.70589726]
[1753212798276,2.97,3695.8,3695.6,2.70590747]
[1753212798847,14.5,3695.9,3695.2,0.453]
[1753212799052,2.97,3695.8,3695.4,0.4638]
[1753212799284,2.97,3695.8,3695.5,2.70595345]
[1753212799794,2.97,3695.8,3695.1,0.001]
[1753212799934,0.4621,3695.7,3695.1,0.001]
[1753212800574,3.16799138,3695.7,3695.1,2.70724633]
[1753212800760,2.97,3695.8,3695.2,2.70621346]
[1753212800977,5.67577801,3695.8,3695.2,2.70621346]
[1753212801198,1.27272309,3695.7,3695.1,0.001]
[1753212801337,2.70621346,3695.2,3695.1,0.001]
[1753212801538,2.97,3695.2,3695.1,0.001]
[1753212801776,3.4321,3695.2,3695.1,0.001]
[1753212802147,2.70594463,3695.6,3695.1,0.001]
[1753212802148,2.70595134,3695.6,3695.1,0.001]
[1753212802402,5.67499866,3695.5,3695.1,0.001]
[1753212802566,0.7768,3695.7,3695.1,0.001]
[1753212802885,2.969,3695.6,3695.1,2.70727268]
[1753212803065,5.67493091,3695.6,3695.1,0.001]
[1753212803261,2.969,3695.5,3695.3,2.70608541]
[1753212803465,2.70574848,3695.9,3695.3,2.70608541]
[1753212803691,2.90974888,3696.6,3695.3,2.70608541]
[1753212803692,0.7771,3697.0,3695.5,0.7872]
[1753212803845,0.7771,3697.4,3696.1,3.0]
[1753212804177,0.7771,3697.4,3696.4,0.7872]
[1753212804350,0.7771,3697.4,3696.5,0.68943598]
[1753212804549,2.969,3697.5,3696.5,1.15323598]
[1753212804876,2.969,3697.5,3697.0,2.70489586]
[1753212805640,2.969,3697.5,3696.8,2.70499388]
[1753212805841,2.969,3697.5,3697.0,2.70489586]
[1753212806256,2.969,3697.5,3696.9,2.70494563]
[1753212806635,2.969,3697.5,3697.0,0.25256275]
[1753212806841,3.50812269,3697.1,3697.0,0.25256275]
[1753212807041,6.47712269,3697.1,3697.0,0.25256275]
[1753212807272,3.7723,3697.1,3697.0,0.25259445]
[1753212807487,6.93928875,3697.1,3697.0,0.25259445]
[1753212807890,21.43928875,3697.1,3697.0,0.25259445]
[1753212808490,15.7654,3697.1,3697.0,0.25259445]
[1753212808670,18.7344,3697.1,3697.0,0.25259445]
[1753212809270,15.7654,3697.1,3697.0,0.25259445]
[1753212809472,18.7344,3697.1,3697.0,0.25259445]
[1753212809978,15.7654,3697.1,3697.0,0.25259445]
[1753212810372,17.47,3697.1,3697.0,0.25259445]
[1753212810757,20.63692269,3697.1,3697.0,0.25259445]
[1753212811235,17.9321,3697.1,3697.0,0.25259445]
[1753212811421,14.502,3697.1,3697.0,0.25229368]
[1753212811574,0.002,3697.1,3697.0,3.42098954]
[1753212811907,2.97,3697.1,3697.0,2.95718954]
[1753212812074,0.002,3697.1,3697.0,2.95713692]
[1753212812258,2.97,3697.1,3697.0,2.95713692]
[1753212812657,0.002,3697.1,3697.0,2.70489586]
[1753212812886,0.002,3697.1,3697.0,4.50966367]
[1753212813558,0.002,3697.9,3697.8,2.70431067]
[1753212814099,0.002,3697.9,3697.8,6.73190578]
[1753212814300,0.002,3697.9,3697.8,6.71811067]
[1753212816323,0.002,3697.9,3697.8,9.68511067]
[1753212816518,0.002,3697.9,3697.8,11.00266147]
[1753212818622,0.002,3698.1,3698.0,6.25416441]
[1753212819015,0.002,3698.1,3698.0,7.04626441]
[1753212819325,0.002,3698.1,3698.0,7.51006441]
[1753212820424,0.002,3698.1,3698.0,5.70416441]
[1753212820625,0.002,3698.1,3698.0,7.096617]
[1753212821300,0.002,3698.1,3697.9,2.70420853]
[1753212821610,0.002,3698.1,3698.0,2.70416441]
[1753212825027,0.002,3698.1,3697.9,2.70421479]
[1753212825228,0.002,3698.1,3697.6,2.966]
[1753212825547,0.8216,3697.9,3696.9,2.966]
[1753212825712,0.4621,3697.8,3697.3,2.7046276]
[1753212826044,0.4621,3697.8,3697.4,2.70458282]
[1753212826277,0.8216,3697.9,3697.4,2.70458282]
[1753212826403,0.4621,3697.7,3697.4,2.70458282]
[1753212826751,0.4621,3697.6,3697.4,2.70458282]
[1753212827099,0.002,3698.1,3697.5,0.01380133]
[1753212827422,0.002,3698.1,3697.8,2.70425818]
[1753212827730,0.002,3698.1,3697.5,1.34949366]
[1753212827947,0.002,3698.1,3697.5,0.7857]
[1753212828147,0.002,3698.1,3698.0,2.70416441]
[1753212829152,0.002,3698.1,3698.0,3.24500571]
[1753212829442,0.002,3698.1,3698.0,3.70979717]
[1753212830798,0.002,3698.1,3698.0,4.25979717]
[1753212830998,0.002,3698.1,3698.0,8.03989717]
[1753212831226,0.002,3698.1,3698.0,8.02610571]
[1753212832254,0.002,3698.5,3698.0,8.02610571]
[1753212832255,1e-08,3698.5,3698.3,0.7801]
[1753212832450,1e-08,3698.6,3698.5,7.03389883]
[1753212833037,0.002,3700.4,3700.3,2.70248358]
[1753212833236,0.002,3700.4,3700.3,0.01374944]
[1753212833440,0.002,3700.4,3700.1,2.965]
[1753212833611,0.002,3700.4,3700.2,3.07706661]
[1753212833829,0.002,3700.4,3700.2,0.37451]
[1753212833999,0.4407,3700.3,3699.7,2.70291085]
[1753212834203,0.4407,3700.3,3699.4,0.7669]
[1753212834204,0.4407,3700.3,3699.9,2.70277157]
[1753212834506,0.4407,3700.3,3699.8,2.70283682]
[1753212835017,0.002,3700.4,3699.8,0.83708232]
[1753212835209,0.002,3700.4,3699.9,2.70272614]
[1753212835506,0.002,3700.4,3699.8,2.70283718]
[1753212835814,0.002,3700.4,3700.1,2.70257963]
[1753212836231,0.002,3700.4,3699.9,2.70276082]
[1753212836602,0.4407,3700.3,3699.9,2.70276082]
[1753212836807,0.4407,3700.2,3699.9,2.70276082]
[1753212837023,0.4407,3700.2,3699.8,2.70284228]
[1753212837224,0.4407,3700.2,3700.1,2.70262965]
[1753212837439,0.002,3700.4,3700.1,2.70262965]
[1753212837604,0.002,3700.4,3699.9,0.01375238]
[1753212837946,0.002,3700.4,3700.3,2.70248358]
[1753212840045,0.002,3700.4,3700.2,2.70250459]
[1753212840341,0.4407,3700.3,3700.2,2.70255661]
[1753212840539,0.002,3700.4,3700.3,2.70248358]
[1753212841243,0.002,3700.4,3699.9,5.66677051]
[1753212841535,0.002,3700.4,3700.3,2.70248358]
[1753212843105,0.002,3700.4,3700.2,2.70248581]
[1753212843307,0.002,3700.4,3700.3,3.26623374]
[1753212843506,0.002,3700.4,3700.3,2.70248358]
[1753212844310,0.002,3700.4,3700.1,2.70257081]
[1753212844642,0.002,3700.4,3699.9,0.56667705]
[1753212844844,0.002,3700.4,3700.1,2.70257359]
[1753212845028,0.4427,3700.4,3699.6,2.963]
[1753212845231,1.2631,3700.4,3700.0,2.70264525]
[1753212845544,1.2631,3700.4,3699.9,3.0]
[1753212845734,1.2631,3700.4,3699.7,0.01375385]
[1753212845917,0.002,3700.4,3699.8,0.55]
[1753212846249,0.002,3700.4,3700.3,2.70248358]
[1753212847347,0.002,3700.4,3699.9,0.62666987]
[1753212847566,0.002,3700.4,3699.9,1.07766987]
[1753212847855,0.002,3700.4,3700.2,2.70255229]
[1753212848220,0.002,3700.4,3699.5,12.34346995]
[1753212848221,1.2354,3700.3,3699.5,0.7864]
[1753212848425,1.2354,3700.3,3699.6,5.70299486]
[1753212848623,1.2354,3700.3,3699.7,2.70286538]
[1753212849565,1.2354,3700.3,3699.8,2.70283281]
[1753212849729,0.4407,3700.2,3699.8,2.70283281]
[1753212850068,0.4407,3700.2,3699.4,3.0]
[1753212850069,0.4407,3700.2,3699.6,2.70296729]
[1753212850261,0.4407,3700.2,3699.4,1.19698539]
[1753212850559,0.4407,3700.2,3699.8,2.70281052]
[1753212851532,0.7631,3700.0,3698.4,1.49031182]
[1753212851760,0.7638,3699.8,3698.4,3.49076071]
[1753212851933,0.7638,3699.3,3698.4,2.71757826]
[1753212852266,0.7638,3699.3,3698.8,2.70456682]
[1753212852466,0.7638,3699.3,3698.8,0.001]
[1753212852770,2.962,3699.2,3699.0,2.70338758]
[1753212853170,0.4407,3699.1,3698.8,0.001]
[1753212853369,0.4407,3699.1,3698.8,2.70457345]
[1753212853570,2.962,3699.2,3698.8,2.70457345]
[1753212854267,2.962,3699.2,3698.8,0.001]
[1753212854470,3.4027,3699.2,3698.8,2.70452125]
[1753212854659,2.962,3699.2,3698.8,0.001]
[1753212855054,2.962,3699.1,3699.0,2.70341945]
[1753212855432,2.962,3699.1,3698.8,0.27147248]
[1753212855764,3.4027,3699.1,3698.8,0.001]
[1753212856071,3.4027,3699.1,3698.8,2.70457023]
[1753212856270,3.4027,3699.1,3698.8,0.001]
[1753212856474,3.48830644,3698.9,3698.8,0.001]
[1753212856976,4.16178795,3698.9,3698.8,0.001]
[1753212858172,4.12799412,3698.9,3698.8,0.001]
[1753212858378,7.08999412,3698.9,3698.8,0.001]
[1753212858671,4.12799412,3698.9,3698.8,0.001]
[1753212858975,7.08999412,3698.9,3698.8,0.001]
[1753212859174,4.12799412,3698.9,3698.8,0.001]
[1753212859350,7.12378795,3698.9,3698.8,0.001]
[1753212859669,7.08999412,3698.9,3698.8,0.001]
[1753212860276,7.08999412,3698.9,3698.8,1e-08]
[1753212860277,10.08999412,3698.9,3698.8,1e-08]
[1753212860494,3.46323008,3697.5,3697.4,0.001]
[1753212860639,6.4590367,3697.5,3697.4,0.001]
[1753212860838,6.87103008,3697.5,3697.4,0.001]
[1753212861071,9.87103008,3697.5,3697.4,1e-08]
[1753212861875,10.55736854,3697.5,3697.4,1e-08]
[1753212862078,7.04536854,3697.5,3697.4,1e-08]
[1753212862276,14.54836854,3697.5,3697.4,1e-08]
[1753212862780,9.87103008,3697.5,3697.4,1e-08]
[1753212863140,4.2045,3697.5,3697.4,1e-08]
[1753212863345,9.87103008,3697.5,3697.4,1e-08]
[1753212864115,6.90903008,3697.5,3697.4,1e-08]
[1753212864407,9.87203008,3697.5,3697.4,1e-08]
[1753212864806,6.90903008,3697.5,3697.4,1e-08]
[1753212865018,9.87203008,3697.5,3697.4,1e-08]
[1753212865202,4.2045,3697.5,3697.4,1e-08]
[1753212865376,9.87203008,3697.5,3697.4,1e-08]
[1753212869511,6.90903008,3697.5,3697.4,1e-08]
[1753212869682,0.7587,3697.5,3697.4,1e-08]
[1753212869877,2.963,3697.5,3697.4,1e-08]
[1753212870114,6.11333008,3697.5,3697.4,1e-08]
[1753212870281,3.4088,3697.5,3697.4,1e-08]
[1753212870513,2.963,3697.5,3697.4,1e-08]
[1753212871579,0.7645,3697.9,3697.4,1e-08]
[1753212871775,0.8138,3698.3,3697.4,0.45430001]
[1753212871979,2.70421177,3698.0,3697.4,0.45430001]
[1753212872217,2.963,3697.9,3697.4,3.15888463]
[1753212872582,5.66724175,3697.9,3697.4,0.45430001]
[1753212872786,2.70433112,3697.8,3697.4,1e-08]
[1753212873030,2.963,3697.9,3697.4,1e-08]
[1753212873031,2.70452365,3697.6,3697.4,1e-08]
[1753212873320,2.963,3697.7,3697.4,1e-08]
[1753212874403,2.963,3697.7,3697.4,2.70455554]
[1753212874712,2.963,3697.6,3697.4,1e-08]
[1753212874916,2.963,3697.5,3697.4,1e-08]
[1753212876216,2.70420862,3698.0,3697.4,1e-08]
[1753212876414,5.66723776,3697.9,3697.4,0.45430001]
[1753212876617,2.70376723,3698.6,3697.4,0.45430001]
[1753212876618,0.7958,3698.8,3697.5,0.46809914]
[1753212876920,3.0,3698.6,3697.5,0.46809914]
[1753212877083,5.70374211,3698.6,3697.9,2.70418198]
[1753212877592,2.70383768,3698.5,3697.8,0.4543]
[1753212877780,2.963,3698.4,3697.9,3.02008549]
[1753212877981,2.963,3698.4,3697.8,0.4543]
[1753212877982,2.70401817,3698.2,3697.4,2.70458365]
[1753212878223,2.962,3698.1,3697.4,2.70459712]
[1753212878391,2.962,3698.1,3697.6,2.70443839]
[1753212878592,2.962,3698.1,3697.6,3.82734194]
[1753212878921,0.7958,3698.8,3697.7,0.4543]
[1753212879105,2.962,3698.7,3698.3,2.70390025]
[1753212879433,2.962,3698.6,3698.4,3.15816493]
[1753212879716,1.2416,3699.4,3698.4,3.15816493]
[1753212879717,2.962,3698.5,3698.4,3.15816493]
[1753212880089,1.2416,3699.4,3698.4,1.04051784]
[1753212880281,0.002,3698.5,3698.4,1.84531784]
[1753212880538,2.964,3698.5,3698.0,0.8048]
[1753212880736,2.964,3698.5,3698.0,3.50893524]
[1753212880913,0.002,3698.5,3698.1,0.4543]
[1753212881224,2.962,3698.4,3698.3,2.70392582]
[1753212881437,2.962,3698.4,3698.3,0.66671033]
[1753212881597,2.962,3698.4,3698.2,2.70400115]
[1753212882231,2.962,3698.4,3698.1,2.70406536]
[1753212882414,2.962,3698.4,3698.1,2.70403197]
[1753212882662,2.962,3698.4,3698.0,1.2591]
[1753212882937,2.962,3698.4,3698.0,0.8048]
[1753212883280,2.962,3698.4,3698.1,2.70408427]
[1753212883484,2.962,3698.3,3698.0,1.15569784]
[1753212883704,2.962,3698.3,3698.2,2.70401817]
[1753212885087,0.002,3698.5,3698.4,2.70387194]
[1753212885294,2.964,3698.5,3698.4,2.70387194]
[1753212886026,0.002,3698.5,3698.4,2.70387194]
[1753212886229,2.963,3698.5,3698.4,2.70387194]
[1753212886836,2.963,3698.5,3698.0,0.8048]
[1753212886996,2.963,3698.5,3698.4,2.70387194]
[1753212887509,2.963,3698.5,3698.1,0.4543]
[1753212887510,2.963,3698.5,3698.3,2.70391744]
[1753212887706,2.963,3698.5,3698.0,3.50892]
[1753212887911,2.961,3698.4,3698.0,0.8048]
[1753212888301,2.961,3698.4,3698.1,2.70409129]
[1753212888726,5.66489644,3698.4,3697.6,3.0]
[1753212888929,5.66489644,3698.4,3697.5,0.7528]
[1753212888930,2.70395448,3698.3,3697.7,2.7043838]
[1753212889234,2.70394505,3698.3,3697.6,2.70441845]
[1753212889422,2.70394505,3698.3,3697.7,2.70437815]
[1753212889934,2.961,3698.2,3698.0,2.70411618]
[1753212890159,2.961,3698.1,3698.0,2.70411618]
[1753212890331,2.961,3698.1,3698.0,3.16971618]
[1753212891722,0.002,3698.5,3698.4,2.70387194]
[1753212892018,2.963,3698.5,3698.4,2.70387194]
[1753212892436,0.002,3698.5,3698.4,3.18325608]
[1753212892648,2.963,3698.5,3698.4,4.11989265]
[1753212892836,2.963,3698.5,3698.4,4.10610851]
[1753212893542,0.002,3698.5,3698.4,4.10610851]
[1753212893706,0.002,3698.5,3698.4,4.66989265]
[1753212893920,0.002,3698.5,3698.4,5.46919265]
[1753212894246,0.002,3698.5,3698.4,8.45540851]
[1753212894745,1e-08,3698.5,3698.4,8.45540851]
[1753212897655,1e-08,3698.5,3698.4,11.41540851]
[1753212900453,1e-08,3698.5,3698.0,0.36497598]
[1753212900616,1e-08,3698.5,3697.7,0.7555]
[1753212900820,1e-08,3698.5,3698.4,2.70387194]
[1753212901459,1e-08,3698.5,3698.4,3.92497194]
[1753212904343,1e-08,3698.5,3698.4,2.95636048]
[1753212905174,1e-08,3698.5,3698.4,4.63387629]
[1753212906135,1e-08,3698.5,3698.4,17.28060143]
[1753212906331,1e-08,3698.5,3698.4,17.26681729]
[1753212907764,1e-08,3698.5,3698.4,20.22581729]
[1753212907988,1e-08,3698.5,3698.4,11.37179215]
[1753212908153,1e-08,3698.5,3698.4,7.29906048]
[1753212908542,1e-08,3698.5,3698.4,0.25248854]
[1753212908882,4.23140001,3698.5,3698.4,0.25248854]
[1753212909097,6.93519884,3698.5,3698.4,0.25248854]
[1753212909385,6.93519884,3698.5,3697.5,2.70448294]
[1753212909386,2.70410003,3698.1,3697.5,2.70448294]
[1753212909535,2.70394505,3698.3,3697.6,2.70444713]
[1753212909742,2.958,3698.3,3697.6,0.4656]
[1753212909951,2.958,3698.3,3697.9,2.70418443]
[1753212910586,0.82490001,3698.5,3697.9,2.70418443]
[1753212911089,15.32490001,3698.5,3698.0,0.25278817]
[1753212911240,15.32490001,3698.5,3697.8,0.7886]
[1753212911241,15.32490001,3698.5,3698.1,0.25278817]
[1753212911441,0.4485,3698.4,3698.1,0.25278817]
[1753212911663,0.4485,3698.3,3697.5,0.8111]
[1753212911978,0.4485,3698.3,3697.4,1e-08]
[1753212911979,0.8287,3698.2,3697.4,2.70459219]
[1753212912285,17.65266349,3698.1,3697.4,2.70458545]
[1753212912642,2.958,3698.0,3697.5,2.70446536]
[1753212912940,2.958,3698.0,3697.4,2.70458782]
[1753212913172,2.958,3698.0,3697.5,2.70453006]
[1753212913668,0.4485,3697.9,3697.4,2.70458448]
[1753212913870,0.4485,3697.9,3697.4,1e-08]
[1753212914049,0.4485,3697.8,3697.4,1e-08]
[1753212914435,2.70425868,3697.9,3697.4,1e-08]
[1753212914641,0.4485,3697.7,3697.4,1e-08]
[1753212914972,0.4485,3697.9,3697.5,2.70447398]
[1753212915272,2.958,3698.0,3697.8,2.70429301]
[1753212915641,3.4065,3698.0,3697.5,2.70451337]
[1753212915841,3.4065,3698.0,3697.6,2.70443481]
[1753212916040,0.4485,3697.9,3697.6,2.70443481]
[1753212916260,2.958,3698.0,3697.4,1e-08]
[1753212916469,2.958,3698.0,3697.8,2.70424228]
[1753212916781,0.78370001,3698.5,3698.0,2.70412259]
[1753212917073,2.958,3698.4,3698.0,2.70412259]
[1753212917369,1.23220001,3698.5,3698.1,2.70404129]
[1753212917561,2.958,3698.3,3697.7,2.70432192]
[1753212917761,2.958,3698.3,3698.0,2.7041492]
[1753212918355,1.23220001,3698.5,3698.0,2.7041492]
[1753212918565,2.958,3698.2,3698.0,2.7041492]
[1753212918765,1.23220001,3698.5,3697.9,2.70421727]
[1753212918968,2.958,3698.2,3697.9,2.70421727]
[1753212920274,1.23220001,3698.5,3697.9,2.70421727]
[1753212920573,2.958,3698.1,3698.0,2.70416441]
[1753212920982,1e-08,3698.5,3697.9,0.55]
[1753212921279,1e-08,3698.5,3697.4,1e-08]
[1753212921280,0.7837,3698.1,3697.4,1e-08]
[1753212921474,14.9384,3698.0,3697.4,1e-08]
[1753212921677,2.70423754,3697.9,3697.4,1e-08]
[1753212921895,2.958,3697.8,3697.4,1e-08]
[1753212922199,0.4384,3697.8,3697.4,2.70458523]
[1753212922361,0.7837,3698.1,3698.0,2.70416441]
[1753212922568,2.958,3698.1,3698.0,0.01379146]
[1753212922874,0.4384,3698.1,3697.4,2.70457569]
[1753212923088,3.3964,3698.1,3697.5,0.34606757]
[1753212923256,0.03380205,3698.0,3697.4,1e-08]
[1753212923441,3.45458338,3697.9,3697.4,1e-08]
[1753212923856,0.4384,3697.8,3697.5,2.70451874]
[1753212924059,0.4384,3697.7,3697.4,2.70459827]
[1753212924362,2.958,3697.6,3697.5,2.70453008]
[1753212924973,2.958,3697.6,3697.4,1e-08]
[1753212924974,3.50363008,3697.5,3697.4,1e-08]
[1753212925184,3.50363008,3697.5,3696.9,0.001]
[1753212925185,2.70489586,3697.0,3696.9,0.001]
[1753212925378,6.49479586,3697.0,3696.9,0.001]
[1753212925560,21.43319586,3697.0,3696.9,0.001]
[1753212927873,24.43319586,3697.0,3696.9,0.001]
[1753212928676,24.43319586,3697.0,3696.9,1e-08]
[1753212928878,24.43319586,3697.0,3696.2,1e-08]
[1753212928879,2.70540811,3696.3,3696.2,1e-08]
[1753212929079,9.48560811,3696.3,3696.2,1e-08]
[1753212929468,24.42400811,3696.3,3696.2,1e-08]
[1753212931791,21.46600811,3696.3,3696.2,1e-08]